Cogmind - Beta 9.2 @@@ ROGUE MODE // 2019.12.11 @ 20:17:56 Player: Fleshy Vegetable Bird Result: Smashed by cave-in Performance ------------- Evolutions (0) 0 Regions Visited (2) 400 Robots Destroyed (23) 115 Value Destroyed (363) 363 Prototype IDs (2) 40 Alien Tech Used (0) 0 Bonus (0) 0 TOTAL SCORE: 918 Bonus ------- None Cogmind --------- Core Integrity 0/250 Matter 230/300 Energy 100/100 System Corruption 11% Temperature Cool (2) Movement Treading (180) Ox1 Location -10/Mines Parts ------- > --- POWER (1) -------- (None) > --- PROPULSION (2) --- Light Treads > --- UTILITY (2) ------ Large Storage Unit Large Storage Unit > --- WEAPON (2) ------- Light Assault Rifle Shotgun > --- INVENTORY (16) --- Light Ion Engine Wheel Wheel Wheel Improved Hover Unit Improved Hover Unit Improved Hover Unit Improved Hover Unit Signal Interpreter Hacking Suite Small Laser Shotgun Peak State ------------ > --- POWER ------------ Light Ion Engine > --- PROPULSION ------- Wheel Wheel > --- UTILITY ---------- Large Storage Unit Large Storage Unit > --- WEAPON ----------- Shotgun Shotgun > --- INVENTORY -------- Light Ion Engine Light Treads Wheel Wheel Wheel Improved Hover Unit Improved Hover Unit Improved Hover Unit Improved Hover Unit Signal Interpreter Hacking Suite Small Laser Light Assault Rifle Shotgun [Rating: 11] Favorites ----------- Power Ion Engine Engine Ion Engine Propulsion Wheel Treads Light Treads Wheel Wheel Utility Large Storage Unit Storage Large Storage Unit Weapon Shotgun Energy Gun Medium Laser Ballistic Gun Shotgun Launcher Grenade Launcher Build | -11 -10 -10 ------- Run | Scr Mat Min Slots Evolved . | . . . Power . | . . . Propulsion . | . . . Utility . | . . . Weapon . | . . . Parts Attached 23 | 5 14 4 Power 2 | 1 . 1 Engine 2 | 1 . 1 Core . | . . . Reactor . | . . . Propulsion 6 | 1 4 1 Treads 1 | . . 1 Leg . | . . . Wheel 5 | 1 4 . Hover . | . . . Flight . | . . . Utility 6 | 1 5 . Device . | . . . Storage 6 | 1 5 . Processor . | . . . Hackware . | . . . Protection . | . . . Artifact . | . . . Weapon 9 | 2 5 2 Energy Gun 2 | 2 . . Energy Cannon . | . . . Ballistic Gun 6 | . 4 2 Ballistic Cannon . | . . . Launcher 1 | . 1 . Special Weapon . | . . . Impact Weapon . | . . . Slashing Weapon . | . . . Piercing Weapon . | . . . Special Melee Weapon . | . . . Unidentified Prototypes . | . . . Parts Lost 9 | . 3 6 Power 2 | . . 2 Propulsion 3 | . 1 2 Utility . | . . . Weapon 4 | . 2 2 Highest Loss Streak 4 | . 2 4 Average Slot Usage (%) 92 | . 91 96 Engine 13 | . 14 12 Wheel 24 | . 23 25 Storage 26 | . 25 28 Energy Gun 1 | . 2 . Ballistic Gun 19 | . 20 18 Launcher 5 | . 3 9 Naked Turns . | . . . Heaviest Build 43 | 12 43 43 Greatest Support 20 | 10 20 20 Greatest Overweight (x) 4 | 1 4 4 Average Overweight (x) 1 | . 1 1 Largest Inventory Capacity 16 | 6 16 16 Average Capacity 12 | 5 12 16 Most Carried 15 | 6 13 15 Average Carried 9 | 5 8 13 Final Capacity 16 | 6 16 16 Final Carried 13 | 6 13 12 Class Distribution -------------------- 85% | Mutant 14% | Scavenger-Mutant Dominant Class ---------------- Mutant | -10/Materials Mutant | -10/Mines Resources | -11 -10 -10 ----------- Run | Scr Mat Min Matter Collected 608 | 216 163 229 Remotely . | . . . Salvage Created 624 | 149 398 77 Parts 46 | 13 32 1 Haulers Intercepted 2 | . 2 . Recyclers Shooed . | . . . Parts Field Recycled . | . . . Retrieved Matter . | . . . Parts Self-Destructed . | . . . Prevented . | . . . Kills | -11 -10 -10 ------- Run | Scr Mat Min Combat Hostiles Destroyed 11 | . 8 3 Guns 9 | . 6 3 AOE 2 | . 2 . Classes Destroyed 9 | 2 5 2 Worker 2 | . 2 . Tunneler 4 | 4 . . Hauler 2 | . 2 . Recycler 2 | 1 . 1 Watcher 2 | . 2 . Swarmer 4 | . 4 . Grunt 4 | . 4 . Demolisher 1 | . . 1 Assembled 2 | . . 2 Best Kill Streak 7 | 5 7 2 Combat Bots Only 4 | . 4 1 Max Kills in Single Turn 2 | 1 2 1 Gunslinging . | . . . Exploded 2 | . 2 . Melee . | . . . Uniques/NPCs Destroyed . | . . . Combat | -11 -10 -10 -------- Run | Scr Mat Min Damage Taken 1200 | . 361 839 Core 268 | . 78 190 Absorbed by Shields . | . . . Core Remaining (%) 100 | 100 . . Volleys Fired 95 | 18 56 21 Largest 2 | 1 2 2 Hottest 90 | 50 90 43 Shots Fired 122 | 18 74 30 Gun 114 | 18 70 26 Cannon . | . . . Launcher 8 | . 4 4 Special . | . . . Kinetic 71 | . 45 26 Thermal 43 | 18 25 . Explosive 8 | . 4 4 Electromagnetic . | . . . Robot Hit Streak 9 | 6 7 9 Robot Miss Streak 5 | 1 5 2 Penetration Max . | . . . Secondary Targets . | . . . Shots Hit Robots 77 | 12 46 19 Core Hits 43 | 6 27 10 Critical Hits . | . . . Critical Kills . | . . . Critical Parts Destroyed . | . . . Melee Attacks . | . . . Impact . | . . . Slashing . | . . . Piercing . | . . . Sneak Attacks . | . . . Combat Hostiles . | . . . Follow-up Attacks . | . . . Damage Inflicted 995 | 149 532 314 Guns 811 | 149 471 191 Cannons . | . . . Explosions 184 | . 61 123 Melee . | . . . Ramming . | . . . Kinetic 449 | . 258 191 Thermal 362 | 149 213 . Explosive 184 | . 61 123 Electromagnetic . | . . . Impact . | . . . Slashing . | . . . Piercing . | . . . Highest Corruption 8 | . 3 8 Average Corruption 4 | . 2 4 Corruption Purged . | . . . Effects 15 | . 3 12 Message Errors 8 | . 2 6 Matter Fused 2 | . . 2 Heat Flow Errors 2 | . 1 1 Energy Discharges 1 | . . 1 Targeting Errors 2 | . . 2 Overload Shots . | . . . Overflow Damage 17 | . 17 . Projectiles . | . . . Explosions 17 | . 17 . Melee . | . . . Knockbacks . | . . . Impact . | . . . Kinetic . | . . . Secondary . | . . . Self-Inflicted Damage 81 | . 66 15 Shots 4 | . 3 1 Rammed . | . . . Targets Rammed . | . . . Kicked . | . . . Crushed . | . . . Highest Temperature 409 | 180 409 140 Average Temperature 143 | 92 214 23 Received Heat Transfer 144 | . 144 . Effects 3 | . 3 . Shutdowns 2 | . 2 . Damage (minor) 1 | . 1 . Siege Activations . | . . . Robots Corrupted . | . . . Combat Hostiles . | . . . Parts Fried . | . . . Impact Corruptions . | . . . Robots Melted . | . . . Combat Hostiles . | . . . Parts Melted 1 | 1 . . Heat Transferred 1025 | 444 581 . Parts Sabotaged . | . . . Parts Stolen . | . . . Parts Stripped . | . . . Power Chain Reactions . | . . . Missiles Intercepted . | . . . Alert | -11 -10 -10 ------- Run | Scr Mat Min Peak Influence 194 | 25 194 30 Average Influence 62 | 11 90 8 Maximum Alert Level . | . . . Low Security (%) 100 | 100 100 100 Level 1 . | . . . Level 2 . | . . . Level 3 . | . . . Level 4 . | . . . Level 5 . | . . . High Security . | . . . Max Security . | . . . Squads Dispatched . | . . . Investigation . | . . . Extermination . | . . . Reinforcement . | . . . Assault . | . . . Garrison . | . . . Intercept . | . . . Construction Impeded . | . . . Haulers Reinforced . | . . . Stealth | -11 -10 -10 --------- Run | Scr Mat Min Distress Signals 1 | . . 1 Communications Jammed . | . . . Distress Signals . | . . . Times Spotted 20 | . 15 5 Peak Tracking Total 4 | . 4 2 Tactical Retreats 1 | . . 1 Traps | -11 -10 -10 ------- Run | Scr Mat Min Traps Triggered 2 | . 2 . Indirectly . | . . . Trap Hack Attempts . | . . . Triggered . | . . . Disarmed . | . . . Reprogrammed . | . . . Reused . | . . . Traps Extracted . | . . . Installed . | . . . Triggered . | . . . Machines | -11 -10 -10 ---------- Run | Scr Mat Min Machines Disabled 3 | . 2 1 Max in Single Turn 2 | . 2 1 Machines Sabotaged . | . . . Garrisons Compromised . | . . . Overloaded Fab Kills . | . . . Fab Network Shutdowns . | . . . Hacking | -11 -10 -10 --------- Run | Scr Mat Min Machines Accessed 8 | . 8 . Terminals 8 | . 8 . Fabricators . | . . . Repair Stations . | . . . Recycling Units . | . . . Scanalyzers . | . . . Garrison Access . | . . . Total Hacks 32 | . 32 . Successful 19 | . 19 . Failed 13 | . 13 . Catastrophic . | . . . Database Lockouts . | . . . Manual 27 | . 27 . Terminals 32 | . 32 . Fabricators . | . . . Repair Stations . | . . . Recycling Units . | . . . Scanalyzers . | . . . Garrison Access . | . . . Terminal Hacks 7 | . 7 . Part Schematic 3 | . 3 . Prototype ID Bank 1 | . 1 . Branch Access Points 1 | . 1 . Terminal Index 1 | . 1 . Registered Components 1 | . 1 . Fabricator Hacks . | . . . Repair Station Hacks . | . . . Recycling Unit Hacks . | . . . Scanalyzer . | . . . Garrison Access Hacks . | . . . Unauthorized Hacks 29 | . 29 . Terminals 12 | . 12 . Track 1 | . 1 . Assimilate 2 | . 2 . Botnet 8 | . 8 . Operators 1 | . 1 . Fabricators . | . . . Repair Stations . | . . . Recycling Units . | . . . Scanalyzers . | . . . Garrison Access . | . . . Data Cores Recovered . | . . . Used . | . . . Hacking Detections 7 | . 7 . Full Trace Events . | . . . Feedback Events . | . . . Feedback Blocked . | . . . Robot Schematics Acquired . | . . . Robots Built . | . . . Matter . | . . . Time . | . . . Total Robot Build Rating . | . . . Part Schematics Acquired 2 | . 2 . Parts Built . | . . . Matter . | . . . Time . | . . . Total Part Build Rating . | . . . Parts Repaired . | . . . Time . | . . . Parts Recycled . | . . . Recycled Matter . | . . . Retrieved Matter . | . . . Retrieved Components . | . . . Parts Scanalyzed . | . . . Part Schematics Acquired . | . . . Parts Damaged . | . . . Bothacking | -11 -10 -10 ------------ Run | Scr Mat Min Used RIF Installer . | . . . Robots Hacked . | . . . Non-combat . | . . . Combat . | . . . Robot Hacks Applied . | . . . Relay Couplers Released . | . . . Robots Rewired . | . . . Allies Hacked . | . . . Hacks Repelled . | . . . Allies | -11 -10 -10 -------- Run | Scr Mat Min Total Allies 1 | . 1 . Largest Group 1 | . 1 . Highest-Rated Group 10 | . 10 . Highest-Rated Ally 10 | . 10 . Total Orders . | . . . Ally Attacks . | . . . Total Damage . | . . . Kills . | . . . Allies Corrupted . | . . . Allies Melted . | . . . Intel | -11 -10 -10 ------- Run | Scr Mat Min Robot Analysis Total . | . . . Derelict Logs Recovered 1 | . . 1 Drone Launches . | . . . Drone Recoveries . | . . . Exploration | -11 -10 -10 ------------- Run | Scr Mat Min Turns Passed 1252 | 118 825 309 Spaces Moved 881 | 51 665 165 Core 5 | 5 . . Treads . | . . . Legs . | . . . Wheels 876 | 46 665 165 Hover . | . . . Flight . | . . . Fastest Speed 50 | 50 80 90 Average Speed 95 | 86 95 97 Slowest Speed 120 | 90 120 120 Overloaded Moves . | . . . Propulsion Burnouts . | . . . Robots Hopped . | . . . Cave-ins Triggered 1 | . . 1 Exploration Rate (%) 42 | 3 90 33 Regions Visited 2 Branch Regions 1 Pre-discovered Areas 1 | . . 1 Known Exits Taken 1 | . 1 . Unknown Exits Taken 1 | 1 . . Scrap Searched . | . . . Spaces Dug 42 | . 42 . Terrain Destroyed 72 | . 55 17 Melee . | . . . Projectile . | . . . AOE 72 | . 55 17 Actions | -11 -10 -10 --------- Run | Scr Mat Min Total 1179 | 108 785 286 Wait 130 | 18 19 93 Move 879 | 50 664 165 Hop . | . . . Pick Up 39 | 14 22 3 Fast Attach . | . . . Attach 14 | 5 5 4 Detach . | . . . Swap 9 | . 9 . Drop 13 | 3 10 . Fire 95 | 18 56 21 Melee . | . . . Ram . | . . . Kick . | . . . Crush . | . . . Escape Stasis . | . . . Rewire . | . . . Trap . | . . . Miscellaneous . | . . . Route ------- -11/Scrapyard -10/Materials (discovered 4 exits: [*Mat x3] / *Min) -10/Mines (discovered 1 exit: [*Mat]) History --------- Turn | Location | Event 26 | -11/Scrapyard | Discovered new exit (range 15) 119 | -11/Scrapyard | Entered Materials 313 | -10/Materials | Build established: Mutant 473 | -10/Materials | Identified exit to Mines 523 | -10/Materials | Discovered new exit (range 10) 642 | -10/Materials | Discovered new exit (range 3) 712 | -10/Materials | Discovered new exit (range 16) 944 | -10/Materials | Entered Mines 947 | -10/Mines | Discovered new exit (range 3) 979 | -10/Mines | Assembled infested the area 1162 | -10/Mines | Learned location of Storage (-9) 1243 | -10/Mines | Core integrity fell below 50% 1254 | -10/Mines | Crushed by falling debris 1254 | -10/Mines | Smashed by cave-in Last Messages --------------- 01162_ Acquired derelict log, extracted data. World map updated: -9/Storage. 01178_ J /NPSWJY396KUHQDI>OH7268#BYM3 01228_ Shotgun destroyed. 01230_ D-53 Grenadier destroyed. 01233_ The unstable cave ceiling collapses. 01239_ System corrupted: Matter fused (-10). 01242_ The unstable cave ceiling collapses. 01244_ System corrupted: Lgt. Assault Rifle targeting data glitched. 01246_ The unstable cave ceiling collapses. 01252_ System corrupted: Shotgun targeting data glitched. 01254_ The unstable cave ceiling collapses. 01254_ Crushed by falling debris. 01254_ Lgt. Ion Engine destroyed. 01254_ System corrupted by crushing effect (+3). Map ----- +----------------------------------------------------+ | ???????????????????????# #???????????????? | | ???????????????????????## #???????????????? | | ????????????????????????#### ##???????????????? | | ???????????????????????????## ##???????????????? | | ????????????????????????????## ##??????????????# | | ?????????????????????????????## ##?????????????# | | ??????????????????????????????## ###???????????# | | ???????????????????????????????# #######?????? | | ???????????????????????????????## ## ####### | | ????????????????????????????????### # | | ??????????????????????????????????## # | | ??????????????????????????????###### #### # | | ??????????????????????????????# ### # | | ??????????????????????????????# #### ## | | ??????????????????????????????# #??# ### ### | | ??????????????????????????????# #??# #?### #?? | | ??????????????????????????##### #??# #???## ##?? | | ??????????????????????????# #??# #?????###??? | | ??????????????????????????# #####??# #??????????? | | ????????????????#?????????# ######?# #??????????? | | ????????????????# ????#### =% ### #??????????? | | ???????????????## ?## % ## #??????????? | | ???????????????# # [ #??????????? | | ???????????????# = ??????????? | | ???????????????# #? ??????????? | | ???????????????# d @ # #?? ?????????? | | ????????????????# $ t #??# ????????? | | ????????????????# ## #???=%= ?????????? | | ???????????????????## #??? ?????????? | | ??????????????????? # #????????????????? | | ??????????????????### ######## ???????????????? | | ????????????????????#?????????## #??????????????? | | ????????????????????????????????? #??????????????? | | ??????????????????????????????????#??????????????? | | ?????????????????????????????????????????????????? | | ?????????????????????????????????????????????????? | | ?????????????????????????????????????????????????? | | ?????????????????????????????????????????????????? | | ?????????????????????????????????????????????????? | | ?????????????????????????????????????????????????? | | ?????????????????????????????????????????????????? | | ?????????????????????????????????????????????????? | | ?????????????????????????????????????????????????? | | ?????????????????????????????????????????????????? | | ?????????????????????????????????????????????????? | | ?????????????????????????????????????????????????? | | ?????????????????????????????????????????????????? | | ?????????????????????????????????????????????????? | | ?????????????????????????????????????????????????? | | ?????????????????????????????????????????????????? | +----------------------------------------------------+ Best States ------------- Heat Dissipation 25 Energy Generation 10 Energy Capacity 250 Matter Stores 300 Matter Capacity 300 Sight Range 16 Terrain Scan Density 10 Evasion (%) 44 Recoil Reduction 1 Item Schematics ----------------- Hover Unit | -10/Materials | Hacked Med. Storage Unit | -10/Materials | Hacked Robot Schematics ------------------ None Fabricated ------------ Nothing Alien Tech Used ----------------- None Achievements -------------- None Challenges ------------ None Game ------ Seed AerolevPortablePurifier Manual? 0 Play Time 00:17:37 Cumulative 229.4 hours Start 2019.12.11 @ 19:03:13 End 2019.12.11 @ 20:17:56 Sessions 1 Manual Loads 0 Difficulty Rogue Special Mode None Game No. 301 Rogue 301 Adventurer 0 Explorer 0 Win Type - Total 2 Types 1/0/0/1/0/0/0 Lore% 58 Gallery% 79 Achievement% 55 Wizard Run 0 Options --------- ASCII 0 Keyboard 0 Movement Numpad Keybinds 0 Fullscreen 1 Font 16/Terminus Map View 75x55 Tactical HUD 1 Map Filters NONE Filters NONE Steam 1 RUN: d73fd54b-051a-4a09-a9f7-d158a6f53c85